lending/lending_fUSD_20240112
["ID","MTS","AMOUNT","RATE_DAILY","PERIOD"]
[311346948,1705065129056,-611.41,0.00027796,2]
[311346949,1705065129066,-1479.42,0.00027796,2]
[311346950,1705065129075,-500.0,0.00027796,2]
[311346951,1705065129085,-1130.95,0.00027796,2]
[311346952,1705065129094,-917.05,0.00027796,2]
[311346953,1705065129103,-3574.26,0.00027796,2]
[311346954,1705065129112,-526.02,0.00027796,2]
[311346955,1705065129122,-494.38391948,0.00027796,2]
[311346956,1705065129132,-500.0,0.00027796,2]
[311346957,1705065129141,-514.03,0.00027796,2]
[311346958,1705065129152,-1199.16,0.00027796,2]
[311346959,1705065129161,-186.23571906,0.00027796,2]
[311346960,1705065129170,-809.87,0.00027796,2]
[311346961,1705065129179,-826.13,0.00027796,2]
[311346962,1705065129189,-629.29,0.00027796,2]
[311346963,1705065129199,-2053.17,0.00027796,2]
[311346964,1705065129208,-500.0,0.00027796,2]
[311346965,1705065129218,-337.02,0.00027796,2]
[311346966,1705065129229,-713.26,0.00027796,2]
[311346967,1705065129239,-896.29,0.00027796,2]
[311346968,1705065129250,-1112.52,0.00027796,2]
[311346969,1705065129260,-1157.27,0.00027796,2]
[311346970,1705065129270,-574.98,0.00027796,2]
[311346971,1705065129279,-597.76,0.00027796,2]
[311346972,1705065129289,-1688.31,0.00027796,2]
[311346973,1705065129298,-974.33,0.00027796,2]
[311346974,1705065129308,-644.03,0.00027796,2]
[311346975,1705065129317,-791.75,0.00027796,2]
[311346976,1705065129327,-2017.32,0.00027796,2]
[311346977,1705065129336,-655.0,0.00027796,2]
[311346978,1705065129345,-535.6,0.00027796,2]
[311346979,1705065129354,-705.71,0.00027796,2]
[311346980,1705065129364,-1374.63,0.00027796,2]
[311346981,1705065129373,-1550.52,0.00027796,2]
[311346982,1705065129383,-1473.58,0.00027796,2]
[311346983,1705065129392,-805.25,0.00027796,2]
[311346984,1705065129401,-1112.34,0.00027796,2]
[311346985,1705065129411,-943.87,0.00027796,2]
[311346986,1705065129420,-565.25,0.00027796,2]
[311346987,1705065129430,-3783.76,0.00027796,2]
[311346988,1705065129439,-500.0,0.00027797,2]
[311346989,1705065129449,-527.36,0.00027797,2]
[311346990,1705065129458,-511.53,0.00027797,2]
[311346991,1705065129467,-592.66,0.00027797,2]
[311346992,1705065129476,-500.0,0.00027797,2]
[311346993,1705065129486,-500.0,0.00027797,2]
[311346994,1705065129497,-500.0,0.00027797,2]
[311346995,1705065129506,-500.0,0.00027797,2]
[311346996,1705065129515,-557.22,0.00027797,2]
[311346997,1705065129525,-500.0,0.00027797,2]
[311346998,1705065129536,-500.0,0.00027797,2]
[311346999,1705065129545,-506.67,0.00027797,2]
[311347000,1705065129556,-555.88,0.00027797,2]
[311347001,1705065129566,-500.0,0.00027797,2]
[311347002,1705065129577,-500.0,0.00027797,2]
[311347003,1705065129586,-710.1,0.00027797,2]
[311347004,1705065129595,-500.0,0.00027797,2]
[311347005,1705065129605,-621.6,0.00027797,2]
[311347006,1705065129614,-500.0,0.00027797,2]
[311347007,1705065129624,-500.0,0.00027797,2]
[311347008,1705065129633,-1022.92,0.00027797,2]
[311347009,1705065129643,-1065.11,0.00027797,2]
[311347010,1705065129653,-973.85,0.00027797,2]
[311347011,1705065129663,-596.64,0.00027797,2]
[311347012,1705065129673,-1316.49,0.00027797,2]
[311347013,1705065129682,-565.15,0.00027797,2]
[311347014,1705065129691,-4908.84,0.00027797,2]
[311347015,1705065129701,-567.77,0.00027797,2]
[311347016,1705065129710,-1555.67,0.00027797,2]
[311347017,1705065129720,-1400.6,0.00027797,5]
[311347018,1705065129730,-1433.76,0.00027797,2]
[311347019,1705065129740,-1359.51,0.00027797,2]
[311347020,1705065129752,-647.67,0.00027797,2]
[311347021,1705065129762,-756.74,0.00027797,2]
[311347022,1705065129771,-1876.2,0.00027797,2]
[311347023,1705065129780,-1309.3,0.00027797,2]
[311347024,1705065129790,-937.63,0.00027797,2]
[311347025,1705065129800,-2066.36,0.00027797,2]
[311347026,1705065129809,-3090.41,0.00027797,2]
[311347027,1705065129819,-660.9,0.00027797,2]
[311347028,1705065129828,-500.0,0.00027797,2]
[311347029,1705065129839,-500.0,0.00027797,2]
[311347030,1705065129852,-1935.88,0.00027797,2]
[311347031,1705065129862,-505.19,0.00027797,2]
[311347032,1705065129872,-527.44,0.00027797,2]
[311347033,1705065129881,-500.0,0.00027797,2]
[311347034,1705065129890,-1258.22,0.00027797,2]
[311347035,1705065129899,-500.0,0.00027797,2]
[311347036,1705065129909,-500.0,0.00027797,2]
[311347037,1705065129918,-620.89,0.00027797,2]
[311347038,1705065129927,-458.40900192,0.00027797,2]
[311347039,1705065129937,-993.03,0.00027797,2]
[311347040,1705065129946,-724.59,0.00027797,2]
[311347041,1705065129955,-434.34,0.00027872,2]
[311347042,1705065129964,-202.68612241,0.00028,2]
[311347043,1705065129973,-462.90586429,0.00028,2]
[311347044,1705065129982,-165.67422842,0.00028,2]
[311347045,1705065129991,-434.34,0.0002803,2]
[311347046,1705065130002,-500.0,0.00028045,2]
[311347047,1705065130012,-1095.03,0.00028067,2]
[311347048,1705065130021,-2336.53,0.00028067,5]
[311347049,1705065130030,-660.44,0.00028067,2]
[311347050,1705065130040,-4983.08,0.00028067,2]
[311347051,1705065130050,-6835.31,0.00028067,2]
[311347052,1705065130059,-1968.89,0.00028067,2]
[311347053,1705065130068,-14321.2,0.00028067,2]
[311347054,1705065130077,-549.3,0.00028067,2]
[311347055,1705065130087,-619.15,0.00028067,2]
[311347056,1705065130096,-1403.82,0.00028067,2]
[311347057,1705065130106,-722.98,0.00028067,2]
[311347058,1705065130115,-587.69904624,0.00028067,2]
[311347059,1705065130124,-607.61,0.00028067,2]
[311347060,1705065130133,-510.07,0.00028067,2]
[311347061,1705065130143,-749.86,0.00028067,2]
[311347062,1705065130152,-3048.94,0.00028067,2]
[311347063,1705065130162,-500.0,0.00028067,2]
[311347064,1705065130171,-1294.29,0.00028067,2]
[311347065,1705065130181,-984.37,0.00028067,2]
[311347066,1705065130192,-675.45,0.00028067,2]
[311347067,1705065130202,-1709.12,0.00028067,2]
[311347068,1705065130211,-937.07,0.00028067,2]
[311347069,1705065130223,-2370.13,0.00028067,2]
[311347070,1705065130233,-793.03,0.00028067,2]
[311347071,1705065130244,-786.71,0.00028067,2]
[311347072,1705065130254,-1074.66,0.00028067,2]
[311347073,1705065130264,-2000.06,0.00028067,2]
[311347074,1705065130274,-3928.94,0.00028067,2]
[311347075,1705065130283,-1033.75,0.00028067,2]
[311347076,1705065130294,-874.55,0.00028067,2]
[311347077,1705065130303,-1304.48,0.00028067,2]
[311347078,1705065130313,-6963.0,0.00028067,2]
[311347079,1705065130323,-1048.12,0.00028067,2]
[311347080,1705065130332,-500.0,0.00028067,2]
[311347081,1705065130342,-1205.23,0.00028067,2]
[311347082,1705065130351,-736.05,0.00028067,2]
[311347083,1705065130361,-9796.43,0.00028067,2]
[311347084,1705065130370,-500.0,0.00028067,2]
[311347085,1705065130380,-2056.42,0.00028067,2]
[311347086,1705065130389,-600.05,0.00028067,2]
[311347087,1705065130398,-1076.15,0.00028067,2]
[311347088,1705065130407,-500.0,0.00028067,2]
[311347089,1705065130417,-1891.13,0.00028067,2]
[311347090,1705065130427,-2556.24,0.00028067,2]
[311347091,1705065130438,-750.14,0.00028067,2]
[311347092,1705065130447,-2721.6,0.00028067,2]
[311347093,1705065130456,-884.19,0.00028067,2]
[311347094,1705065130466,-2018.21,0.00028067,2]
[311347095,1705065130475,-2134.94,0.00028067,2]
[311347096,1705065130484,-1493.07,0.00028067,2]
[311347097,1705065130494,-1084.3,0.00028067,2]
[311347098,1705065130503,-612.02,0.00028067,2]
[311347099,1705065130513,-5673.19,0.00028067,2]
[311347100,1705065130523,-1028.9,0.00028067,2]
[311347101,1705065130532,-2233.34,0.00028067,2]
[311347102,1705065130543,-710.28,0.00028067,2]
[311347103,1705065130554,-1431.33,0.0002807,2]
[311347104,1705065130565,-500.0,0.0002807,2]
[311347105,1705065130574,-526.28,0.0002807,2]
[311347106,1705065130583,-500.0,0.0002807,2]
[311347107,1705065130593,-543.44,0.0002807,2]
[311347108,1705065130603,-500.0,0.0002807,2]
[311347109,1705065130614,-500.0,0.0002807,2]
[311347110,1705065130624,-553.95,0.0002807,2]
[311347111,1705065130634,-516.33,0.0002807,2]
[311347112,1705065130644,-586.6,0.0002807,2]
[311347113,1705065130654,-515.42,0.0002807,2]
[311347114,1705065130663,-592.8,0.0002807,2]
[311347115,1705065130673,-500.0,0.0002807,2]
[311347116,1705065130682,-500.0,0.0002807,2]
[311347117,1705065130692,-150.0,0.0002807,2]
[311347118,1705065130701,-500.0,0.0002807,2]
[311347119,1705065130710,-572.59,0.0002807,2]
[311347120,1705065130720,-535.83,0.0002807,2]
[311347121,1705065130730,-611.41,0.0002807,2]
[311347122,1705065130739,-1479.42,0.0002807,2]
[311347123,1705065130903,-500.0,0.0002807,2]
[311347124,1705065130935,-1130.95,0.0002807,2]
[311347125,1705065130945,-917.05,0.0002807,2]
[311347126,1705065130954,-3574.26,0.0002807,2]
[311347127,1705065130963,-526.02,0.0002807,2]
[311347128,1705065130974,-500.0,0.0002807,2]
[311347129,1705065130985,-514.03,0.0002807,2]
[311347130,1705065130995,-1199.16,0.0002807,2]
[311347131,1705065131004,-809.87,0.0002807,2]
[311347132,1705065131013,-826.13,0.0002807,2]
[311347133,1705065131023,-629.29,0.0002807,2]
[311347134,1705065131032,-2053.17,0.0002807,2]
[311347135,1705065131042,-500.0,0.0002807,2]
[311347136,1705065131052,-713.26,0.0002807,2]
[311347137,1705065131062,-896.29,0.0002807,2]
[311347138,1705065131073,-1112.52,0.0002807,2]
[311347139,1705065131082,-1157.27,0.0002807,2]
[311347140,1705065131091,-597.76,0.0002807,2]
[311347141,1705065131101,-574.98,0.0002807,2]
[311347142,1705065131110,-1688.31,0.0002807,2]
[311347143,1705065131119,-974.33,0.0002807,2]
[311347144,1705065131128,-644.03,0.0002807,2]
[311347145,1705065131138,-791.75,0.0002807,2]
[311347146,1705065131147,-2017.32,0.0002807,2]
[311347147,1705065131157,-655.0,0.0002807,2]
[311347148,1705065131166,-535.6,0.0002807,2]
[311347149,1705065131175,-705.71,0.0002807,2]
[311347150,1705065131184,-1374.63,0.0002807,2]
[311347151,1705065131194,-1550.52,0.0002807,2]
[311347152,1705065131203,-1473.58,0.0002807,2]
[311347153,1705065131213,-805.25,0.0002807,2]
[311347154,1705065131222,-1112.34,0.0002807,2]
[311347155,1705065131232,-943.87,0.0002807,2]
[311347156,1705065131242,-565.25,0.0002807,2]
[311347157,1705065131253,-3783.76,0.0002807,2]
[311347158,1705065131263,-399.94939808,0.00028071,2]
[311347159,1705065131273,-527.36,0.00028071,2]
[311347160,1705065131283,-511.53,0.00028071,2]
[311347161,1705065131293,-592.66,0.00028071,2]
[311347162,1705065131302,-419.33008094,0.00028071,2]
[311347163,1705065131312,-369.79927465,0.00028071,2]
[311347164,1705065131321,-500.0,0.00028071,2]
[311347165,1705065131331,-500.0,0.00028071,2]
[311347166,1705065131340,-557.22,0.00028071,2]
[311347167,1705065131349,-500.0,0.00028071,2]
[311347168,1705065131359,-500.0,0.00028071,2]
[311347169,1705065131368,-506.67,0.00028071,2]
[311347170,1705065131378,-555.88,0.00028071,2]
[311347171,1705065131387,-500.0,0.00028071,2]
[311347172,1705065131398,-219.59583262,0.00028071,2]
[311347173,1705065131408,-710.1,0.00028071,2]
[311347174,1705065131419,-500.0,0.00028071,2]
[311347175,1705065131429,-500.0,0.00028071,2]
[311347176,1705065131439,-500.0,0.00028071,2]
[311347177,1705065131448,-1022.92,0.00028071,2]
[311347178,1705065131458,-1065.11,0.00028071,2]
[311347179,1705065131468,-973.85,0.00028071,2]
[311347180,1705065131478,-596.64,0.00028071,2]
[311347181,1705065131488,-1316.49,0.00028071,2]
[311347182,1705065131498,-565.15,0.00028071,2]
[311347183,1705065131508,-4908.84,0.00028071,2]
[311347184,1705065131518,-567.77,0.00028071,2]
[311347185,1705065131527,-1555.67,0.00028071,2]
[311347186,1705065131536,-1400.6,0.00028071,5]
[311347187,1705065131546,-1433.76,0.00028071,2]
[311347188,1705065131556,-1359.51,0.00028071,2]
[311347189,1705065131566,-647.67,0.00028071,2]
[311347190,1705065131575,-756.74,0.00028071,2]
[311347191,1705065131586,-1876.2,0.00028071,2]
[311347192,1705065131595,-1309.3,0.00028071,2]
[311347193,1705065131605,-937.63,0.00028071,2]
[311347194,1705065131616,-2066.36,0.00028071,2]
[311347195,1705065131625,-3090.41,0.00028071,2]
[311347196,1705065131635,-660.9,0.00028071,2]
[311347197,1705065131646,-500.0,0.00028071,2]
[311347198,1705065131655,-311.72,0.00028071,2]
[311347199,1705065131665,-1935.88,0.00028071,2]
[311347200,1705065131673,-505.19,0.00028071,2]
[311347201,1705065131683,-527.44,0.00028071,2]
[311347202,1705065131693,-500.0,0.00028071,2]
[311347203,1705065131702,-1258.22,0.00028071,2]
[311347204,1705065131712,-500.0,0.00028071,2]
[311347205,1705065131722,-500.0,0.00028071,2]
[311347206,1705065131731,-620.89,0.00028071,2]
[311347207,1705065131740,-993.03,0.00028071,2]
[311347208,1705065131749,-724.59,0.00028071,2]
[311347209,1705065131758,-500.0,0.00028075,2]
[311347210,1705065131768,-150.0,0.00028134,2]
[311347211,1705065131777,-150.0,0.00028185,2]
[311347212,1705065131787,-434.34,0.00028189,2]
[311347213,1705065131797,-1824.82,0.00028219,2]
[311347214,1705065131807,-1824.82,0.00028219,2]
[311347215,1705065131816,-1824.82,0.00028219,2]
[311347216,1705065131826,-1824.82,0.00028219,2]
[311347217,1705065131836,-1824.82,0.00028219,2]
[311347218,1705065131846,-1824.82,0.00028219,2]
[311347219,1705065131856,-1824.82,0.00028219,2]
[311347220,1705065131866,-1824.82,0.00028219,2]
[311347221,1705065131875,-1824.82,0.00028219,2]
[311347222,1705065131884,-1824.82,0.00028219,2]
[311347223,1705065131894,-1824.82,0.00028219,2]
[311347224,1705065131903,-1824.82,0.00028219,2]
[311347225,1705065131913,-1824.82,0.00028219,2]
[311347226,1705065131922,-1824.82,0.00028219,2]
[311347227,1705065131931,-1824.82,0.00028219,2]
[311347228,1705065131941,-1824.82,0.00028219,2]
[311347229,1705065131950,-1824.82,0.00028219,2]
[311347230,1705065131959,-1824.82,0.00028219,2]
[311347231,1705065131969,-1824.82,0.00028219,2]
[311347232,1705065131980,-1824.82,0.00028219,2]
[311347233,1705065131990,-1824.82,0.00028219,2]
[311347234,1705065132000,-1095.03,0.00028341,2]
[311347235,1705065132011,-2336.53,0.00028341,5]
[311347236,1705065132020,-660.44,0.00028341,2]
[311347237,1705065132030,-4983.08,0.00028341,2]
[311347238,1705065132039,-6835.31,0.00028341,2]
[311347239,1705065132049,-1968.89,0.00028341,2]
[311347240,1705065132059,-14321.2,0.00028341,2]
[311347241,1705065132068,-549.3,0.00028341,2]
[311347242,1705065132078,-619.15,0.00028341,2]
[311347243,1705065132087,-1403.82,0.00028341,2]
[311347244,1705065132096,-722.98,0.00028341,2]
[311347245,1705065132107,-607.61,0.00028341,2]
[311347246,1705065132116,-510.07,0.00028341,2]
[311347247,1705065132126,-749.86,0.00028341,2]
[311347248,1705065132135,-3048.94,0.00028341,2]
[311347249,1705065132145,-500.0,0.00028341,2]
[311347250,1705065132155,-1294.29,0.00028341,2]
[311347251,1705065132164,-984.37,0.00028341,2]
[311347252,1705065132174,-675.45,0.00028341,2]
[311347253,1705065132183,-1709.12,0.00028341,2]
[311347254,1705065132193,-937.07,0.00028341,2]
[311347255,1705065132203,-2370.13,0.00028341,2]
[311347256,1705065132212,-793.03,0.00028341,2]
[311347257,1705065132222,-786.71,0.00028341,2]
[311347258,1705065132232,-1074.66,0.00028341,2]
[311347259,1705065132242,-2000.06,0.00028341,2]
[311347260,1705065132252,-3928.94,0.00028341,2]
[311347261,1705065132262,-1033.75,0.00028341,2]
[311347262,1705065132272,-874.55,0.00028341,2]
[311347263,1705065132282,-1304.48,0.00028341,2]
[311347264,1705065132292,-6963.0,0.00028341,2]
[311347265,1705065132302,-1048.12,0.00028341,2]
[311347266,1705065132311,-189.39739779,0.00028341,2]
[311347267,1705065132321,-1205.23,0.00028341,2]
[311347268,1705065132331,-736.05,0.00028341,2]
[311347269,1705065132341,-9796.43,0.00028341,2]
[311347270,1705065132351,-583.38049249,0.00028341,2]
[311347271,1705065132361,-2056.42,0.00028341,2]
[311347272,1705065132370,-600.05,0.00028341,2]
[311347273,1705065132379,-1076.15,0.00028341,2]
[311347274,1705065132388,-500.0,0.00028341,2]
[311347275,1705065132397,-1891.13,0.00028341,2]
[311347276,1705065132408,-2556.24,0.00028341,2]
[311347277,1705065132418,-750.14,0.00028341,2]
[311347278,1705065132429,-2721.6,0.00028341,2]
[311347279,1705065132439,-884.19,0.00028341,2]
[311347280,1705065132448,-2018.21,0.00028341,2]
[311347281,1705065132458,-2134.94,0.00028341,2]
[311347282,1705065132467,-1493.07,0.00028341,2]
[311347283,1705065132476,-1084.3,0.00028341,2]
[311347284,1705065132485,-612.02,0.00028341,2]
[311347285,1705065132495,-5673.19,0.00028341,2]
[311347286,1705065132505,-1028.9,0.00028341,2]
[311347287,1705065132515,-2233.34,0.00028341,2]
[311347288,1705065132525,-710.28,0.00028341,2]
[311347289,1705065132534,-500.0,0.00028344,2]
[311347290,1705065132543,-500.0,0.00028344,2]
[311347291,1705065132554,-500.0,0.00028344,2]
[311347292,1705065132565,-500.0,0.00028344,2]
[311347293,1705065132576,-500.0,0.00028344,2]
[311347294,1705065132586,-500.0,0.00028344,2]
[311347295,1705065132595,-500.0,0.00028344,2]
[311347296,1705065132604,-500.0,0.00028344,2]
[311347297,1705065132614,-500.0,0.00028344,2]
[311347298,1705065132623,-500.0,0.00028344,2]
[311347299,1705065132633,-500.0,0.00028344,2]
[311347300,1705065132642,-500.0,0.00028344,2]
[311347301,1705065132652,-500.0,0.00028344,2]
[311347302,1705065132661,-500.0,0.00028344,2]
[311347303,1705065132671,-500.0,0.00028344,2]
[311347304,1705065132680,-500.0,0.00028344,2]
[311347305,1705065132691,-500.0,0.00028344,2]
[311347306,1705065132700,-500.0,0.00028344,2]
[311347307,1705065132710,-500.0,0.00028344,2]
[311347308,1705065132719,-500.0,0.00028344,2]
[311347309,1705065132729,-500.0,0.00028344,2]
[311347310,1705065132738,-500.0,0.00028344,2]
[311347311,1705065132748,-500.0,0.00028344,2]
[311347312,1705065132758,-500.0,0.00028344,2]
[311347313,1705065132768,-500.0,0.00028344,2]
[311347314,1705065132778,-500.0,0.00028344,2]
[311347315,1705065132787,-500.0,0.00028344,2]
[311347316,1705065132797,-500.0,0.00028344,2]
[311347317,1705065132807,-500.0,0.00028344,2]
[311347318,1705065132816,-500.0,0.00028344,2]
[311347319,1705065132825,-500.0,0.00028344,2]
[311347320,1705065132835,-500.0,0.00028344,2]
[311347321,1705065132846,-500.0,0.00028344,2]
[311347322,1705065132857,-500.0,0.00028344,2]
[311347323,1705065132866,-500.0,0.00028344,2]
[311347324,1705065132876,-500.0,0.00028344,2]
[311347325,1705065132885,-500.0,0.00028344,2]
[311347326,1705065132895,-500.0,0.00028344,2]
[311347327,1705065132904,-500.0,0.00028344,2]
[311347328,1705065132914,-500.0,0.00028344,2]
[311347329,1705065132984,-500.0,0.00028344,2]
[311347330,1705065132995,-500.0,0.00028344,2]
[311347331,1705065133006,-500.0,0.00028344,2]
[311347332,1705065133017,-500.0,0.00028344,2]
[311347333,1705065133028,-500.0,0.00028344,2]
[311347334,1705065133038,-500.0,0.00028344,2]
[311347335,1705065133047,-500.0,0.00028344,2]
[311347336,1705065133059,-500.0,0.00028344,2]
[311347337,1705065133069,-500.0,0.00028344,2]
[311347338,1705065133079,-500.0,0.00028344,2]
[311347339,1705065133088,-500.0,0.00028344,2]
[311347340,1705065133097,-200.0,0.00028344,2]
[311347341,1705065133107,-500.0,0.00028344,2]
[311347342,1705065133116,-500.0,0.00028344,2]
[311347343,1705065133125,-500.0,0.00028344,2]
[311347344,1705065133134,-500.0,0.00028344,2]
[311347345,1705065133143,-500.0,0.00028344,2]
[311347346,1705065133151,-500.0,0.00028344,2]
[311347347,1705065133160,-500.0,0.00028344,2]
[311347348,1705065133170,-500.0,0.00028344,2]
[311347349,1705065133180,-500.0,0.00028344,2]
[311347350,1705065133190,-500.0,0.00028344,2]
[311347351,1705065133200,-500.0,0.00028344,2]
[311347352,1705065133209,-500.0,0.00028344,2]
[311347353,1705065133219,-500.0,0.00028344,2]
[311347354,1705065133228,-500.0,0.00028344,2]
[311347355,1705065133238,-500.0,0.00028344,2]
[311347356,1705065133249,-500.0,0.00028344,2]
[311347357,1705065133258,-500.0,0.00028344,2]
[311347358,1705065133269,-500.0,0.00028344,2]
[311347359,1705065133277,-500.0,0.00028344,2]
[311347360,1705065133287,-500.0,0.00028344,2]
[311347361,1705065133295,-500.0,0.00028344,2]
[311347362,1705065133305,-500.0,0.00028344,2]
[311347363,1705065133314,-500.0,0.00028344,2]
[311347364,1705065133323,-500.0,0.00028344,2]
[311347365,1705065133332,-500.0,0.00028344,2]
[311347366,1705065133341,-500.0,0.00028344,2]
[311347367,1705065133350,-500.0,0.00028344,2]
[311347368,1705065133359,-500.0,0.00028344,2]
[311347369,1705065133369,-500.0,0.00028344,2]
[311347370,1705065133378,-500.0,0.00028344,2]
[311347371,1705065133387,-500.0,0.00028344,2]
[311347372,1705065133396,-500.0,0.00028344,2]
[311347373,1705065133405,-500.0,0.00028344,2]
[311347374,1705065133414,-500.0,0.00028344,2]
[311347375,1705065133423,-500.0,0.00028344,2]
[311347376,1705065133432,-500.0,0.00028344,2]
[311347377,1705065133441,-500.0,0.00028344,2]
[311347378,1705065133449,-500.0,0.00028344,2]
[311347379,1705065133458,-500.0,0.00028344,2]
[311347380,1705065133467,-500.0,0.00028344,2]
[311347381,1705065133477,-500.0,0.00028344,2]
[311347382,1705065133486,-500.0,0.00028344,2]
[311347383,1705065133495,-500.0,0.00028344,2]
[311347384,1705065133506,-500.0,0.00028344,2]
[311347385,1705065133515,-500.0,0.00028344,2]
[311347386,1705065133524,-500.0,0.00028344,2]
[311347387,1705065133533,-500.0,0.00028344,2]
[311347388,1705065133543,-500.0,0.00028344,2]
[311347389,1705065133552,-500.0,0.00028344,2]
[311347390,1705065133562,-500.0,0.00028344,2]
[311347391,1705065133571,-500.0,0.00028344,2]
[311347392,1705065133580,-500.0,0.00028344,2]
[311347393,1705065133588,-500.0,0.00028344,2]
[311347394,1705065133598,-500.0,0.00028344,2]
[311347395,1705065133607,-500.0,0.00028344,2]
[311347396,1705065133617,-500.0,0.00028344,2]
[311347397,1705065133626,-500.0,0.00028344,2]
[311347398,1705065133636,-500.0,0.00028344,2]
[311347399,1705065133645,-500.0,0.00028344,2]
[311347400,1705065133655,-500.0,0.00028344,2]
[311347401,1705065133664,-500.0,0.00028344,2]
[311347402,1705065133673,-500.0,0.00028344,2]
[311347403,1705065133682,-500.0,0.00028344,2]
[311347404,1705065133692,-500.0,0.00028344,2]
[311347405,1705065133701,-500.0,0.00028344,2]
[311347406,1705065133710,-500.0,0.00028344,2]
[311347407,1705065133719,-500.0,0.00028344,2]
[311347408,1705065133729,-500.0,0.00028344,2]
[311347409,1705065133738,-500.0,0.00028344,2]
[311347410,1705065133747,-500.0,0.00028344,2]
[311347411,1705065133758,-500.0,0.00028344,2]
[311347412,1705065133768,-500.0,0.00028344,2]
[311347413,1705065133777,-500.0,0.00028344,2]
[311347414,1705065133786,-500.0,0.00028344,2]
[311347415,1705065133796,-500.0,0.00028344,2]
[311347416,1705065133808,-500.0,0.00028344,2]
[311347417,1705065133818,-500.0,0.00028344,2]
[311347418,1705065133828,-500.0,0.00028344,2]
[311347419,1705065133838,-500.0,0.00028344,2]
[311347420,1705065133852,-500.0,0.00028344,2]
[311347421,1705065133862,-500.0,0.00028344,2]
[311347422,1705065133872,-500.0,0.00028344,2]
[311347423,1705065133881,-500.0,0.00028344,2]
[311347424,1705065133892,-1431.33,0.00028344,2]
[311347425,1705065133902,-331.92631197,0.00028344,2]
[311347426,1705065133912,-526.28,0.00028344,2]
[311347427,1705065133922,-500.0,0.00028344,2]
[311347428,1705065133932,-543.44,0.00028344,2]
[311347429,1705065133942,-576.58628613,0.00028344,2]
[311347430,1705065133952,-500.0,0.00028344,2]
[311347431,1705065133961,-553.95,0.00028344,2]
[311347432,1705065133971,-516.33,0.00028344,2]
[311347433,1705065133981,-586.6,0.00028344,2]
[311347434,1705065133990,-515.42,0.00028344,2]
[311347435,1705065134002,-592.8,0.00028344,2]
[311347436,1705065134011,-284.9169707,0.00028344,2]
[311347437,1705065134022,-395.78,0.00028344,2]
[311347438,1705065134031,-276.39813752,0.00028344,2]
[311347439,1705065134042,-595.40841884,0.00028344,2]
[311347440,1705065134052,-572.59,0.00028344,2]
[311347441,1705065134061,-535.83,0.00028344,2]
[311347442,1705065134071,-611.41,0.00028344,2]
[311347443,1705065134080,-1479.42,0.00028344,2]
[311347444,1705065134090,-574.2697445,0.00028344,2]
[311347445,1705065134099,-1130.95,0.00028344,2]
[311347446,1705065134108,-917.05,0.00028344,2]
[311347447,1705065134118,-3574.26,0.00028344,2]